bitfinex-derivatives/quotes_ETHF0:USTF0_20250322
["timestamp","ask_amount","ask_price","bid_price","bid_amount"]
[1742613586588,1.02726832,1985.5,1985.4,1.00773]
[1742613586780,1.02726832,1985.5,1985.4,3.45883]
[1742613587786,5.968,1985.6,1985.5,1.00768]
[1742613587983,6.85803564,1985.6,1985.5,2.30758]
[1742613588388,7.88711603,1985.6,1985.5,2.30758]
[1742613590892,7.88701381,1985.6,1985.5,2.30758]
[1742613592192,9.25051381,1985.6,1985.5,2.30758]
[1742613599904,8.36058039,1985.6,1985.5,2.30758]
[1742613600303,9.2505573,1985.6,1985.5,2.30758]
[1742613602506,8.36058039,1985.6,1985.5,2.30758]
[1742613602707,9.25050675,1985.6,1985.5,2.30758]
[1742613603700,7.88701297,1985.6,1985.5,2.30758]
[1742613604006,7.88701061,1985.6,1985.5,2.30758]
[1742613604203,6.99708039,1985.6,1985.5,2.30758]
[1742613604599,5.968,1985.6,1985.5,2.30758]
[1742613606308,1.3111,1985.7,1985.6,1.00763]
[1742613606609,24.78775569,1985.8,1985.7,1.00758]
[1742613606812,26.98852649,1985.8,1985.7,2.11328]
[1742613607007,26.98852649,1985.8,1985.7,3.51228]
[1742613607209,28.0172137,1985.8,1985.7,3.51228]
[1742613607803,29.0247437,1985.8,1985.7,3.51228]
[1742613608306,28.0172137,1985.8,1985.7,3.51228]
[1742613609513,29.0247437,1985.8,1985.7,3.51228]
[1742613611010,25.8169437,1985.8,1985.7,2.40658]
[1742613612613,29.0247437,1985.8,1985.7,2.40658]
[1742613613212,29.0247437,1985.8,1985.7,1.399]
[1742613613408,1.00758,1985.7,1985.6,1.00762]
[1742613613716,1.00768,1985.6,1985.5,1.00764]
[1742613613913,4.14941929,1985.6,1985.5,2.30564]
[1742613614216,5.43781929,1985.6,1985.5,2.30564]
[1742613614516,6.4665065,1985.6,1985.5,2.30564]
[1742613617013,6.4665065,1985.6,1985.5,1.298]
[1742613617516,6.4665065,1985.6,1985.4,1.00769]
[1742613617517,1.00773,1985.5,1985.4,1.00769]
[1742613617815,4.3360565,1985.5,1985.4,2.32909]
[1742613618509,3.3283265,1985.5,1985.4,2.32909]
[1742613620215,4.3360065,1985.5,1985.4,2.32909]
[1742613620918,3.44616721,1985.5,1985.4,2.32909]
[1742613621719,3.44616721,1985.5,1985.4,1.3214]
[1742613622108,4.33668053,1985.5,1985.4,1.3214]
[1742613622505,1.00778,1985.3,1985.2,1.0078]
[1742613622709,2.51946,1985.3,1984.9,5.72772]
[1742613622911,5.5485,1985.2,1985.0,2.51984]
[1742613623111,6.55636,1985.2,1985.1,1.00788]
[1742613623721,8.94254721,1985.2,1985.1,1.00788]
[1742613624518,1.00788,1985.1,1985.0,2.38599]
[1742613624719,2.36538,1985.1,1985.0,2.38599]
[1742613625218,1.3575,1985.1,1985.0,2.38599]
[1742613626221,2.36538,1985.1,1985.0,2.38599]
[1742613629920,1.3575,1985.1,1985.0,2.38599]
[1742613630116,2.36538,1985.1,1985.0,1.3781]
[1742613630323,2.36538,1985.1,1984.7,6.9277482]
[1742613630324,1.00804,1984.8,1984.7,1.0156082]
[1742613630516,1.00804,1984.8,1984.7,0.0075582]
[1742613631723,2.39084,1984.8,1984.7,1.3357582]
[1742613632214,2.39084,1984.8,1984.7,2.3438482]
[1742613635822,2.39084,1984.8,1984.7,1.3357582]
[1742613637024,1.00821,1984.6,1984.5,1.00817]
[1742613637227,1.00819,1984.5,1984.4,5.37253]
[1742613637418,2.39119,1984.5,1984.4,5.37253]
[1742613638324,1.383,1984.5,1984.4,5.37253]
[1742613638922,1.3018582,1984.6,1984.5,1.00819]
[1742613640121,0.0075582,1984.6,1984.5,1.00819]
[1742613640427,0.0075582,1984.6,1984.5,2.29009]
[1742613645422,0.0075582,1984.6,1984.5,5.49789]
[1742613653631,1.3355582,1984.6,1984.5,5.49909]
[1742613653829,2.3436982,1984.6,1984.5,5.49909]
[1742613655230,2.3436982,1984.6,1984.5,2.29009]
[1742613655633,1.3355582,1984.6,1984.5,2.29009]
[1742613656331,2.3436982,1984.6,1984.5,2.29009]
[1742613656733,1.0082,1984.5,1984.3,47.7644582]
[1742613656933,2.35269,1984.5,1984.4,4.5774]
[1742613657529,2.35269,1984.5,1984.4,5.58564]
[1742613657726,2.35269,1984.5,1984.4,3.208]
[1742613658537,3.3814944,1984.5,1984.4,3.208]
[1742613659631,1.00824,1984.4,1984.3,1.0158482]
[1742613659833,2.32164,1984.4,1984.3,1.0158482]
[1742613660042,2.32164,1984.4,1984.3,2.2889482]
[1742613660640,2.32164,1984.4,1984.3,0.0075582]
[1742613660938,2.32164,1984.4,1984.3,1.0158482]
[1742613661540,2.32164,1984.4,1984.3,2.2889482]
[1742613661735,2.32164,1984.4,1984.3,1.2806582]
[1742613662126,2.32164,1984.4,1984.3,2.2889482]
[1742613663336,1.3134,1984.4,1984.3,1.2806582]
[1742613663540,2.32164,1984.4,1984.3,0.0075582]
[1742613663738,11.49744,1984.4,1984.3,0.0075582]
[1742613663929,22.12905578,1984.4,1983.8,47.59152]
[1742613664241,1.00849,1983.9,1983.8,1.4097]
[1742613664630,1.00849,1983.9,1983.6,2.17023]
[1742613664631,5.72905,1983.9,1983.6,2.17023]
[1742613664834,2.38734,1983.8,1983.7,1.4097]
[1742613665034,2.38734,1983.8,1983.7,2.4183]
[1742613665233,2.38734,1983.8,1983.7,1.4097]
[1742613665433,2.38734,1983.8,1983.7,2.4183]
[1742613665632,1.3788,1983.8,1983.7,2.4183]
[1742613666537,1.3788,1983.8,1983.7,3.545]
[1742613668047,9.177,1984.2,1983.7,2.5364]
[1742613668345,5.968,1984.2,1984.1,1.00839]
[1742613668943,5.968,1984.4,1984.3,1.00829]
[1742613669135,5.72829,1984.5,1984.4,1.00824]
[1742613669136,5.968,1984.5,1984.4,1.00824]
[1742613669337,8.33369,1984.5,1984.3,1.00825]
[1742613669533,1.3575,1984.4,1984.3,1.00825]
[1742613669738,1.3575,1984.4,1984.3,2.39815]
[1742613670139,1.3575,1984.4,1984.3,3.55795]
[1742613682451,2.36574,1984.4,1984.3,1.3899]
[1742613683449,2.36574,1984.4,1984.3,2.39819]
[1742613683655,1.3575,1984.4,1984.3,2.39819]
[1742613683854,1.3575,1984.4,1984.3,3.50019]
[1742613684154,2.36574,1984.4,1984.3,3.50019]
[1742613684354,1.3575,1984.4,1984.3,3.50019]
[1742613684748,2.36574,1984.4,1984.3,3.50019]
[1742613684947,1.3575,1984.4,1984.3,3.50019]
[1742613685749,1.3575,1984.4,1984.3,4.64289]
[1742613687354,0.0075582,1984.6,1984.5,1.00819]
[1742613687553,0.0075582,1984.6,1984.5,4.21719]
[1742613688050,0.0075582,1984.6,1984.5,7.42499]
[1742613688249,4.21562,1985.3,1984.9,1.00799]
[1742613688552,2.3669,1985.4,1985.1,2.51959]
[1742613688752,4.75163,1985.4,1985.3,1.00778]
[1742613688958,2.3669,1985.4,1985.3,1.00778]
[1742613689158,24.94962466,1985.4,1985.3,2.41368]
[1742613689359,24.94962466,1985.4,1985.3,1.4059]
[1742613689558,24.94962466,1985.4,1985.3,2.41368]
[1742613690759,24.94962466,1985.4,1985.2,3.2165582]
[1742613690760,1.00778,1985.3,1985.2,4.2243682]
[1742613690949,1.00778,1985.3,1985.2,0.0075582]
[1742613691153,2.03291701,1985.3,1985.2,0.0075582]
[1742613691554,2.91937253,1985.3,1985.2,0.0075582]
[1742613692055,1.00793,1985.0,1984.9,4.21599]
[1742613692257,1.00799,1984.9,1984.8,2.3941]
[1742613692963,3.31747,1985.0,1984.9,1.00799]
[1742613693163,3.31747,1985.0,1984.9,2.36179]
[1742613693559,2.3095,1985.0,1984.9,2.36179]
[1742613693760,6.97593,1985.1,1985.0,1.00793]
[1742613693962,6.97593,1985.1,1985.0,2.36173]
[1742613694257,5.968,1985.1,1985.0,2.36173]
[1742613694566,2.18278,1985.3,1985.2,1.00783]
[1742613695258,1.175,1985.3,1985.2,2.36163]
[1742613695453,1.112,1985.4,1985.3,1.00778]
[1742613695659,1.112,1985.4,1985.3,5.54418]
[1742613695959,0.0075582,1985.5,1985.4,1.00773]
[1742613696161,0.0075582,1985.5,1985.4,3.43783]
[1742613697562,1.0152382,1985.5,1985.4,3.43783]
[1742613698861,0.0075582,1985.5,1985.4,3.43783]
[1742613699864,1.0152382,1985.5,1985.4,3.43783]
[1742613700062,0.0075582,1985.5,1985.4,3.43783]
[1742613700456,1.0152382,1985.5,1985.4,3.43783]
[1742613701356,1.0152382,1985.5,1985.4,2.33613]
[1742613703167,0.0075582,1985.5,1985.4,2.33613]
[1742613709270,21.57499466,1985.8,1985.7,1.00758]
[1742613709471,21.57499466,1985.8,1985.7,4.21458]
[1742613710067,21.57499466,1985.8,1985.7,5.30648]
[1742613711569,1.3321582,1985.9,1985.8,1.00753]
[1742613711772,1.3321582,1985.9,1985.8,2.34033]
[1742613713267,5.968,1986.3,1986.2,1.00733]
[1742613713568,1.3283,1986.3,1986.2,4.21433]
[1742613713871,30.75079466,1986.7,1986.6,1.00712]
[1742613714059,31.75786466,1986.7,1986.6,4.21412]
[1742613714263,31.75786466,1986.7,1986.6,3.207]
[1742613714668,33.07876466,1986.7,1986.6,3.207]
[1742613715670,1.00712,1986.6,1986.5,0.0075582]
[1742613715867,3.46332,1986.6,1986.5,0.0075582]
[1742613718167,3.46332,1986.6,1986.5,1.0147282]
[1742613718773,3.46332,1986.6,1986.5,0.0075582]
[1742613719072,3.46332,1986.6,1986.5,1.0147282]
[1742613720575,3.46332,1986.6,1986.5,0.0075582]
[1742613721272,3.46332,1986.6,1986.5,1.0147282]
[1742613722575,2.32802,1986.6,1986.5,1.0147282]
[1742613722878,2.32802,1986.6,1986.5,2.3257282]
[1742613725375,2.32802,1986.6,1986.5,1.0147282]
[1742613726485,2.32802,1986.6,1986.5,2.3836282]
[1742613729378,2.32802,1986.6,1986.5,1.0147282]
[1742613729780,3.35081245,1986.6,1986.5,1.0147282]
[1742613729978,3.35081245,1986.6,1986.5,2.4266282]
[1742613730380,2.32802,1986.6,1986.5,2.4266282]
[1742613731586,3.35111066,1986.6,1986.5,2.4266282]
[1742613731881,4.45891066,1986.6,1986.5,1.0147282]
[1742613733285,4.45891066,1986.6,1986.5,2.2893282]
[1742613733885,3.43582,1986.6,1986.5,1.0147282]
[1742613735085,3.43582,1986.6,1986.5,2.3253282]
[1742613735287,3.43582,1986.6,1986.5,0.0075582]
[1742613735883,4.46027865,1986.6,1986.5,0.0075582]
[1742613736582,4.46027865,1986.6,1986.5,1.0147282]
[1742613736788,4.46027865,1986.6,1986.5,0.0075582]
[1742613737475,5.34698403,1986.6,1986.5,0.0075582]
[1742613737782,4.46027865,1986.6,1986.5,0.0075582]
[1742613738087,5.34752555,1986.6,1986.5,0.0075582]
[1742613743891,5.34752555,1986.6,1986.5,0.00206548]
[1742613744092,6.11485631,1986.6,1986.5,0.00206548]
[1742613744290,6.11485631,1986.6,1986.5,2.29933548]
[1742613744584,1.91170555,1986.6,1986.5,2.29933548]
[1742613744789,1.91170555,1986.6,1986.5,5.50433548]
[1742613745092,1.02445865,1986.6,1986.5,6.67333548]
[1742613745291,0.00496103,1986.8,1986.5,8.18410548]
[1742613745596,0.00496103,1986.8,1986.7,1.00707]
[1742613745782,1.00707,1986.7,1986.6,1.2901]
[1742613745987,1.00707,1986.7,1986.6,1.00712]
[1742613746291,3.2575169,1986.7,1986.6,1.00712]
[1742613747087,1.00712,1986.6,1986.5,1.17106548]
[1742613747283,6.4019669,1986.6,1986.5,0.00206548]
[1742613747588,7.5941669,1986.6,1986.5,0.00206548]
[1742613749896,4.3863669,1986.6,1986.5,1.00923548]
[1742613750391,7.5941669,1986.6,1986.5,0.00206548]
[1742613750985,4.3863669,1986.6,1986.5,0.00206548]
[1742613751187,7.5941669,1986.6,1986.5,0.00206548]
[1742613752193,1.00733,1986.2,1986.1,5.30495]
[1742613752398,1.00733,1986.2,1986.1,1.0926]
[1742613752698,3.2078,1986.3,1986.0,5.23289]
[1742613752699,1.00738,1986.1,1986.0,5.23289]
[1742613753402,2.32378,1986.1,1986.0,5.23289]
[1742613754296,2.32378,1986.1,1986.0,5.23293]
[1742613754496,1.00743,1986.0,1985.9,0.0075582]
[1742613754796,3.2110769,1986.0,1985.9,0.0075582]
[1742613755699,4.21550143,1986.0,1985.9,0.0075582]
[1742613756495,7.42050143,1986.0,1985.9,0.0075582]
[1742613756694,13.38850143,1986.0,1985.9,0.0075582]
[1742613756891,1.00763,1985.6,1985.5,5.23345]
[1742613758198,2.3516682,1985.7,1985.6,1.00763]
[1742613759696,2.3516682,1985.7,1985.5,4.2258]
[1742613759697,1.00763,1985.6,1985.5,1.0208]
[1742613759901,1.00768,1985.5,1985.4,0.0075582]
[1742613760196,2.17718,1985.5,1985.4,0.0075582]
[1742613760401,3.52808,1985.5,1985.4,0.0075582]
[1742613761598,9.49608,1985.5,1985.4,0.0075582]
[1742613762204,10.38262341,1985.5,1985.4,0.0075582]
[1742613762504,10.49795179,1985.5,1985.4,0.0075582]
[1742613763902,9.49608,1985.5,1985.4,0.0075582]
[1742613772393,1.00788,1985.1,1985.0,1.2025]
[1742613772603,1.00788,1985.1,1985.0,1.3373]
[1742613773000,10.95161,1985.1,1984.7,2.21525]
[1742613773199,4.21579,1984.9,1984.8,1.3373]
[1742613773601,6.60019,1984.9,1984.8,1.3373]
[1742613775302,1.00804,1984.8,1984.7,1.0922582]
[1742613775510,2.33494,1984.8,1984.7,2.4448582]
[1742613775905,7.2949,1984.8,1984.4,1.00819]
[1742613776211,4.21599,1984.5,1984.4,1.3526]
[1742613776801,1.00824,1984.4,1984.3,12.92032244]
[1742613777002,2.33514,1984.4,1984.3,14.27292244]
[1742613778801,5.54294,1984.4,1984.3,14.27292244]
[1742613780905,1.00824,1984.4,1984.3,15.28121244]
[1742613781111,1.00824,1984.4,1984.3,14.27292244]
[1742613783015,4.21604,1984.4,1984.3,14.27292244]
[1742613783413,1.00824,1984.4,1984.3,14.27292244]
[1742613785115,1.00824,1984.4,1984.3,15.28121244]
[1742613785312,1.00824,1984.4,1984.3,14.27292244]
[1742613786215,4.21604,1984.4,1984.3,14.27292244]
[1742613791209,7.43104,1984.4,1984.3,13.18822244]
[1742613794021,13.39904,1984.4,1984.3,13.18822244]
[1742613794417,13.39904,1984.4,1984.3,14.19651244]
[1742613794617,13.39904,1984.4,1984.3,13.18822244]
[1742613794822,13.39904,1984.4,1984.3,14.19651244]
[1742613795114,10.19124,1984.4,1984.3,14.19651244]
[1742613795306,6.97624,1984.4,1984.3,14.19651244]
[1742613797119,5.968,1984.4,1984.3,17.40851244]
[1742613799914,1.00824,1984.4,1984.3,17.40851244]
[1742613800217,1.00824,1984.4,1984.3,14.19651244]
[1742613800423,5.54914,1984.4,1984.3,13.18822244]
[1742613801833,6.43770355,1984.4,1984.3,13.18822244]
[1742613802225,7.44174447,1984.4,1984.3,13.18822244]
[1742613802819,4.23394447,1984.4,1984.3,14.19651244]
[1742613803025,2.01228092,1984.4,1984.3,14.19651244]
[1742613803222,1.00824,1984.4,1984.3,14.19651244]
[1742613804620,1.90076444,1984.5,1984.4,1.00824]
[1742613804621,2.90898444,1984.5,1984.4,1.00824]
[1742613804828,2.01981912,1984.5,1984.4,3.31124]
[1742613805330,1.0157782,1984.5,1984.4,3.31124]
[1742613806328,2.3582782,1984.5,1984.4,3.31124]
[1742613806534,4.25419033,1984.5,1984.4,3.31124]
[1742613806832,3.36408849,1984.5,1984.4,3.31124]
[1742613808523,4.2544634,1984.5,1984.4,3.31124]
[1742613808927,3.36408849,1984.5,1984.4,3.31124]
[1742613809232,3.36408849,1984.5,1984.4,2.303]
[1742613809529,4.25444132,1984.5,1984.4,2.303]
[1742613809736,4.25444132,1984.5,1984.4,3.31124]
[1742613810031,3.36408849,1984.5,1984.4,3.31124]
[1742613810626,4.25443343,1984.5,1984.4,3.31124]
[1742613811233,5.27733343,1984.5,1984.4,3.31124]
[1742613811635,3.36408849,1984.5,1984.4,3.31124]
[1742613813334,2.02158849,1984.5,1984.4,3.31124]
[1742613813836,1.0157782,1984.5,1984.4,3.31124]
[1742613814739,1.0157782,1984.5,1984.4,2.303]
[1742613814939,2.3819782,1984.5,1984.4,2.303]
[1742613815238,4.27810638,1984.5,1984.4,2.303]
[1742613815635,4.27810638,1984.5,1984.4,3.31124]
[1742613815938,4.27810638,1984.5,1984.4,1.2787]
[1742613816135,1.00824,1984.4,1984.3,11.83562244]
[1742613816436,7.76944,1984.4,1984.3,11.83562244]
[1742613816629,8.6596315,1984.4,1984.3,11.83562244]
[1742613816843,9.66556818,1984.4,1984.3,11.83562244]
[1742613817135,9.66556818,1984.4,1984.3,13.18082244]
[1742613817439,4.46817668,1984.4,1984.3,14.18911244]
[1742613817641,3.38037668,1984.4,1984.3,14.18911244]
[1742613817836,2.37444,1984.4,1984.3,14.18911244]
[1742613818431,2.37444,1984.4,1984.3,13.18082244]
[1742613819231,5.58224,1984.4,1984.3,13.18082244]
[1742613819432,6.47243678,1984.4,1984.3,13.18082244]
[1742613819839,7.47837346,1984.4,1984.3,13.18082244]
[1742613820833,6.58817668,1984.4,1984.3,14.18911244]
[1742613821033,1.00593668,1984.4,1984.3,14.18911244]
[1742613821243,2.01417668,1984.4,1984.3,14.18911244]
[1742613821739,4.27808702,1984.5,1984.4,1.00824]
[1742613821945,3.38782488,1984.5,1984.4,3.41384]
[1742613822343,4.27829235,1984.5,1984.4,3.41384]
[1742613824649,3.38778488,1984.5,1984.4,3.41384]
[1742613825046,2.3818482,1984.5,1984.4,3.41384]
[1742613826048,1.0157482,1984.5,1984.4,3.41384]
[1742613826241,2.2928482,1984.5,1984.4,3.41384]
[1742613828651,0.0075582,1984.5,1984.4,3.41384]
[1742613831943,0.0075582,1984.5,1984.4,5.91384]
[1742613832147,1.00593668,1984.7,1984.6,1.00814]
[1742613832353,1.00593668,1984.7,1984.6,4.21714]
[1742613832542,25.90293687,1984.8,1984.7,1.00809]
[1742613832746,27.7995179,1984.8,1984.7,2.07689]
[1742613832946,6.11245103,1984.8,1984.7,3.37839]
[1742613836662,7.17485103,1984.8,1984.7,3.37839]
[1742613837357,7.17485103,1984.8,1984.7,2.30959]
[1742613839363,7.17485103,1984.8,1984.7,1.3015]
[1742613839568,1.00809,1984.7,1984.6,1.0081]
[1742613839769,2.39569,1984.7,1984.6,2.3157]
[1742613840369,3.40187123,1984.7,1984.6,2.3157]
[1742613840667,4.29150547,1984.7,1984.6,1.3076]
[1742613841466,1.00819,1984.5,1984.4,1.1005]
[1742613841666,1.00819,1984.5,1984.3,11.83562244]
[1742613841667,1.00824,1984.4,1984.3,11.83562244]
[1742613841864,3.43674,1984.4,1984.3,14.21377244]
[1742613847276,3.51205,1984.6,1984.5,1.00819]
[1742613847277,0.9917,1984.6,1984.5,1.00819]
[1742613847576,9.1758,1984.7,1984.6,1.00814]
[1742613847774,11.46272,1984.7,1984.6,1.00814]
[1742613847978,4.4866,1984.7,1984.6,2.32904]
[1742613848271,3.2078,1984.7,1984.6,2.32904]
[1742613848466,2.32077,1984.8,1984.7,1.00809]
[1742613848666,2.0792682,1984.9,1984.8,1.00804]
[1742613848878,0.0075582,1984.9,1984.8,1.00804]
[1742613849170,0.0075582,1984.9,1984.8,2.32894]
[1742613849563,0.0075582,1984.9,1984.8,5.54094]
[1742613850162,0.0075582,1984.9,1984.8,8.74874]
[1742613850776,0.0075582,1984.9,1984.8,5.54094]
[1742613852970,21.68706687,1985.3,1985.2,1.00783]
[1742613853172,21.68706687,1985.3,1985.2,4.22083]
[1742613853371,21.68706687,1985.3,1985.2,7.42863]
[1742613853372,21.36615184,1985.3,1985.2,7.42863]
[1742613853775,21.36615184,1985.3,1985.2,8.84223]
[1742613853976,2.0961,1985.7,1985.4,3.52699]
[1742613854280,1.3846,1985.6,1985.5,3.39148]
[1742613855177,1.0960582,1985.7,1985.6,1.00763]
[1742613855377,1.3921582,1985.7,1985.6,2.35723]
[1742613856383,1.3921582,1985.7,1985.6,5.57423]
[1742613857572,0.0075582,1985.7,1985.6,5.57423]
[1742613858678,1.4099582,1985.7,1985.6,5.57423]
[1742613862283,0.0075582,1985.7,1985.6,5.57423]
[1742613867186,1.0418582,1985.7,1985.6,5.57423]
[1742613867382,2.4409582,1985.7,1985.6,5.57423]
[1742613867985,3.4485382,1985.7,1985.6,5.57423]
[1742613868183,3.4485382,1985.7,1985.6,4.22463]
[1742613869988,3.4485382,1985.7,1985.6,1.00763]
[1742613872191,1.00768,1985.5,1985.4,4.2252782]
[1742613872489,1.00768,1985.5,1985.4,1.0152782]
[1742613872793,2.30488,1985.5,1985.4,1.0152782]
[1742613873388,2.30488,1985.5,1985.4,2.3999782]
[1742613873986,2.30488,1985.5,1985.4,0.0075582]
[1742613879199,2.30488,1985.5,1985.4,1.0152882]
[1742613881794,1.2972,1985.5,1985.4,1.0152882]
[1742613881989,1.2972,1985.5,1985.4,2.4274882]
[1742613882189,1.2972,1985.5,1985.4,3.4674882]
[1742613882394,2.30488,1985.5,1985.4,1.0152882]
[1742613883491,2.30488,1985.5,1985.4,0.0075582]
[1742613884295,3.3074959,1985.5,1985.4,0.0075582]
[1742613884795,2.30488,1985.5,1985.4,0.0075582]
[1742613888105,2.30488,1985.5,1985.4,1.0152882]
[1742613888299,2.30488,1985.5,1985.4,2.2895882]
[1742613889304,2.30488,1985.5,1985.4,1.2818582]
[1742613889508,1.2972,1985.5,1985.4,2.2895882]
[1742613889904,0.9939,1985.6,1985.5,1.00768]
[1742613890207,3.41303,1985.6,1985.5,2.28198]
[1742613892199,3.41303,1985.6,1985.5,1.00768]
[1742613893493,4.41637521,1985.6,1985.5,1.00768]
[1742613893699,4.41637521,1985.6,1985.5,2.40228]
[1742613894500,5.30447618,1985.6,1985.5,2.40228]
[1742613894709,4.41637521,1985.6,1985.5,2.40228]
[1742613895007,5.30449528,1985.6,1985.5,2.40228]
[1742613895204,1.00768,1985.5,1985.4,1.0152582]
[1742613895407,2.35338,1985.5,1985.4,2.4098582]
[1742613896306,1.3457,1985.5,1985.4,2.4098582]
[1742613896612,5.20936,1985.6,1985.5,1.00768]
[1742613896811,7.58465384,1985.6,1985.5,2.36988]
[1742613897405,6.59075384,1985.6,1985.5,2.36988]
[1742613897805,5.58309384,1985.6,1985.5,2.36988]
[1742613898008,4.21199384,1985.6,1985.5,2.36988]
[1742613898201,4.2251782,1985.7,1985.6,1.00763]
[1742613898202,1.3786582,1985.7,1985.6,1.00763]
[1742613898408,2.3862382,1985.7,1985.6,4.49873]
[1742613898609,3.27505034,1985.7,1985.6,4.49873]
[1742613898909,4.27964992,1985.7,1985.6,4.49873]
[1742613899106,3.27206992,1985.7,1985.6,4.49873]
[1742613899306,1.01215778,1985.7,1985.6,4.49873]
[1742613899512,0.0075582,1985.7,1985.6,4.49873]
[1742613901206,1.0151382,1985.7,1985.6,4.49873]
[1742613901406,2.4033382,1985.7,1985.6,4.49873]
[1742613901712,2.4033382,1985.7,1985.6,3.40003]
[1742613901915,3.4222382,1985.7,1985.6,3.40003]
[1742613902904,2.4146582,1985.7,1985.6,3.40003]
[1742613903804,1.3957582,1985.7,1985.6,3.40003]
[1742613904712,0.0075582,1985.7,1985.6,3.40003]
[1742613909217,2.0974382,1985.7,1985.6,3.40003]
[1742613909411,3.4388382,1985.7,1985.6,1.00763]
[1742613909607,1.00768,1985.6,1985.5,1.00764]
[1742613909812,2.34908,1985.6,1985.5,1.00764]
[1742613910020,2.34908,1985.6,1985.5,2.37714]
[1742613911814,2.34908,1985.6,1985.5,1.3695]
[1742613912018,1.00768,1985.5,1985.4,1.0152382]
[1742613912212,3.41748,1985.5,1985.4,2.4217382]
[1742613912412,4.30601928,1985.5,1985.4,2.4217382]
[1742613912617,5.31023887,1985.5,1985.4,2.4217382]
[1742613914222,4.42169959,1985.5,1985.4,1.4140582]
[1742613915216,4.42169959,1985.5,1985.4,2.4217882]
[1742613916325,4.42169959,1985.5,1985.4,1.4140582]
[1742613916623,5.31044119,1985.5,1985.4,1.4140582]
[1742613916923,5.31048466,1985.5,1985.4,1.4140582]
[1742613919630,5.31048466,1985.5,1985.4,0.0075582]
[1742613921019,5.31048466,1985.5,1985.4,1.3852582]
[1742613921726,5.31048466,1985.5,1985.4,2.3929882]
[1742613924826,5.31048466,1985.5,1985.4,1.3852582]
[1742613925025,5.31048466,1985.5,1985.4,2.3929882]
[1742613925227,5.31048466,1985.5,1985.4,1.3852582]
[1742613925526,5.31048466,1985.5,1985.4,1.0152882]
[1742613926227,5.31048466,1985.5,1985.4,0.0075582]
[1742613926620,5.31048466,1985.5,1985.4,1.0152882]
[1742613926823,5.31048466,1985.5,1985.4,0.0075582]
[1742613928126,8.51748466,1985.5,1985.4,0.0075582]
[1742613931530,11.72528466,1985.5,1985.4,0.0075582]
[1742613931828,1.00796,1985.1,1985.0,1.00791]
[1742613932029,13.21760466,1985.5,1984.9,2.36614]
[1742613932030,1.00793,1985.0,1984.9,2.36614]
[1742613932234,3.42633,1985.0,1984.9,2.36614]
[1742613937132,2.4184,1985.0,1984.9,2.36614]
[1742613937333,3.42633,1985.0,1984.9,2.36614]
[1742613940028,2.35953,1985.0,1984.9,2.36614]
[1742613941636,1.3516,1985.0,1984.9,2.36614]
[1742613941937,2.35953,1985.0,1984.9,2.36614]
[1742613943537,1.3516,1985.0,1984.9,2.36614]
[1742613943737,2.35953,1985.0,1984.9,2.36614]
[1742613949041,1.3516,1985.0,1984.9,2.36614]
[1742613949642,2.35953,1985.0,1984.9,2.36614]
[1742613962155,1.3516,1985.0,1984.9,2.36614]
[1742613962353,2.35953,1985.0,1984.9,2.36614]
[1742613962656,1.3516,1985.0,1984.9,2.36614]
[1742613964554,2.35953,1985.0,1984.9,2.36614]
[1742613965058,1.3516,1985.0,1984.9,2.36614]
[1742613965357,2.35953,1985.0,1984.9,2.36614]
[1742613968454,3.24880989,1985.0,1984.9,2.36614]
[1742613968655,4.25392772,1985.0,1984.9,2.36614]
[1742613973258,4.25392772,1985.0,1984.9,1.3582]
[1742613973450,1.00799,1984.9,1984.8,1.3929582]
[1742613973653,4.20676989,1984.9,1984.8,1.3929582]
[1742613973853,4.20676989,1984.9,1984.8,2.4009982]
[1742613974058,5.21188772,1984.9,1984.8,2.4009982]
[1742613974254,3.31461783,1984.9,1984.8,2.4009982]
[1742613974561,2.31451783,1984.9,1984.8,2.4009982]
[1742613974763,1.3094,1984.9,1984.8,2.4009982]
[1742613975260,2.90356851,1985.0,1984.9,1.00799]
[1742613975458,4.21296851,1985.0,1984.9,3.43089]
[1742613982259,3.20499851,1985.0,1984.9,3.43089]
[1742613982563,4.21292851,1985.0,1984.9,3.43089]
[1742613983762,1.00511783,1985.0,1984.9,3.43089]
[1742613984063,1.00511783,1985.0,1984.9,6.63789]
[1742613984463,24.86473097,1985.1,1985.0,1.00793]
[1742613984655,25.75520694,1985.1,1985.0,3.47433]
[1742613984857,25.8710395,1985.1,1985.0,3.47433]
[1742613985053,26.76150036,1985.1,1985.0,3.47433]
[1742613985467,26.76140646,1985.1,1985.0,3.47433]
[1742613985769,25.8710395,1985.1,1985.0,3.47433]
[1742613985957,22.6632395,1985.1,1985.0,3.47433]
[1742613986564,21.65693097,1985.1,1985.0,3.47433]
[1742613992569,21.64937277,1985.1,1985.0,3.47433]
[1742613992775,21.64937277,1985.1,1985.0,5.97433]
[1742613993375,18.46147277,1985.1,1985.0,5.97433]
[1742613993583,9.1758,1985.5,1985.4,1.00773]
[1742613993784,3.2078,1985.5,1985.4,4.21473]
[1742613994080,0.89679657,1985.7,1985.4,12.33358]
[1742613994285,0.0075582,1985.7,1985.6,1.00763]
[1742613994487,0.0075582,1985.7,1985.6,4.21463]
[1742613994680,1.3378582,1985.7,1985.6,4.21463]
[1742614001288,1.3378582,1985.7,1985.6,1.00763]
[1742614001491,1.00763,1985.6,1985.5,2.34693]
[1742614001792,1.00763,1985.6,1985.5,5.55293]
[1742614001793,3.02473,1985.6,1985.5,5.55293]
[1742614001989,1.00768,1985.5,1985.4,4.2137]
[1742614002189,3.02477,1985.6,1985.5,1.00768]
[1742614002389,1.00768,1985.5,1985.4,4.21371]
[1742614002791,5.2249,1985.6,1985.5,1.00768]
[1742614003095,6.23254,1985.6,1985.4,4.21369]
[1742614003295,3.02474,1985.6,1985.4,5.50999]
[1742614003495,3.02474,1985.6,1985.4,4.5023]
[1742614003991,3.02474,1985.6,1985.5,1.00768]
[1742614008996,1.00773,1985.5,1985.4,1.00769]
[1742614009193,4.21553,1985.5,1985.4,1.00769]
[1742614011693,1.00778,1985.4,1985.3,1.00773]
[1742614014396,2.01110254,1985.4,1985.3,1.00773]